fUSD/lending_fUSD_20250109
["ID","MTS","AMOUNT","RATE_DAILY","PERIOD"]
[348304145,1736439039904,-365.55321982,9.974e-05,2]
[348304147,1736439039917,-134.44678018,9.974e-05,2]
[348304149,1736439039926,-676.41,9.974e-05,2]
[348304151,1736439039937,-166.07321982,9.974e-05,2]
[348304153,1736439039948,-333.92678018,9.974e-05,2]
[348304156,1736439039958,-500.0,9.974e-05,2]
[348304157,1736439039968,-500.0,9.974e-05,2]
[348304160,1736439039978,-500.0,9.974e-05,2]
[348304162,1736439039988,-513.9559594,9.974e-05,2]
[348304163,1736439039997,-151.41726042,9.974e-05,2]
[348304264,1736439041094,-500.0,9.797e-05,2]
[348304266,1736439041107,-500.0,9.797e-05,2]
[348304268,1736439041117,-500.0,9.798e-05,2]
[348304270,1736439041127,-396.1943,9.798e-05,2]
[348304272,1736439041138,-103.8057,9.798e-05,2]
[348304274,1736439041147,-1136.52039046,9.921e-05,2]
[348304276,1736439041157,-348.58273958,9.974e-05,2]
[348304278,1736439041166,-500.0,9.974e-05,2]
[348304280,1736439041175,-500.0,9.974e-05,2]
[348304282,1736439041185,-679.98,9.974e-05,2]
[348304284,1736439041195,-1487.57,9.974e-05,2]
[348304286,1736439041204,-500.0,9.974e-05,2]
[348304288,1736439041213,-500.0,9.974e-05,2]
[348304290,1736439041222,-500.0,9.974e-05,2]
[348304292,1736439041232,-500.0,9.974e-05,2]
[348304294,1736439041241,-500.0,9.974e-05,2]
[348304296,1736439041251,-500.0,9.974e-05,2]
[348304298,1736439041260,-1394.43,9.974e-05,2]
[348304300,1736439041270,-359.54853296,9.974e-05,2]
[348304302,1736439041281,-500.0,9.974e-05,2]
[348304304,1736439041292,-500.0,9.974e-05,2]
[348304306,1736439041302,-782.46,9.974e-05,2]
[348304308,1736439041312,-746.76,9.974e-05,2]
[348304310,1736439041321,-1065.62,9.974e-05,2]
[348304312,1736439041331,-500.0,9.974e-05,2]
[348304314,1736439041341,-500.0,9.974e-05,2]
[348304316,1736439041352,-1279.01,9.974e-05,2]
[348304318,1736439041363,-500.0,9.974e-05,2]
[348304320,1736439041373,-501.32363208,9.974e-05,2]
[348304322,1736439041383,-500.0,9.974e-05,2]
[348304324,1736439041392,-1477.38,9.974e-05,2]
[348304326,1736439041402,-500.0,9.974e-05,2]
[348304328,1736439041411,-622.24,9.974e-05,2]
[348304330,1736439041422,-500.0,9.974e-05,2]
[348304332,1736439041432,-500.0,9.974e-05,2]
[348304334,1736439041442,-500.0,9.974e-05,2]
[348304336,1736439041451,-500.0,9.975e-05,2]
[348304338,1736439041460,-500.0,9.975e-05,2]
[348304340,1736439041470,-500.0,9.975e-05,2]
[348304342,1736439041479,-500.0,9.975e-05,2]
[348304344,1736439041488,-500.0,9.975e-05,2]
[348304346,1736439041498,-500.0,9.975e-05,2]
[348304348,1736439041507,-500.0,9.975e-05,2]
[348304349,1736439041516,-500.0,9.975e-05,2]
[348304351,1736439041526,-500.0,9.975e-05,2]
[348304353,1736439041535,-500.0,9.975e-05,2]
[348304355,1736439041544,-500.0,9.975e-05,2]
[348304357,1736439041553,-500.0,9.975e-05,2]
[348304359,1736439041563,-500.0,9.975e-05,2]
[348304361,1736439041573,-500.0,9.975e-05,2]
[348304363,1736439041582,-500.0,9.975e-05,2]
[348304365,1736439041592,-500.0,9.975e-05,2]
[348304367,1736439041605,-500.0,9.975e-05,2]
[348304369,1736439041615,-500.0,9.975e-05,2]
[348304371,1736439041624,-500.0,9.975e-05,2]
[348304373,1736439041633,-500.0,9.975e-05,2]
[348304375,1736439041643,-500.0,9.975e-05,2]
[348304377,1736439041653,-500.0,9.975e-05,2]
[348304380,1736439041662,-500.0,9.975e-05,2]
[348304381,1736439041672,-1607.22,9.975e-05,2]
[348304384,1736439041682,-934.31,9.975e-05,2]
[348304386,1736439041692,-2252.04,9.975e-05,2]
[348304388,1736439041702,-2909.97,9.975e-05,2]
[348304390,1736439041711,-3054.64,9.975e-05,2]
[348304392,1736439041720,-200.0,9.975e-05,2]
[348304394,1736439041734,-1951.19,9.975e-05,2]
[348304395,1736439041743,-2721.21,9.975e-05,2]
[348304398,1736439041752,-1079.18900492,9.975e-05,2]
[348304400,1736439041766,-2919.09,9.975e-05,2]
[348304402,1736439041777,-1543.32099508,9.975e-05,2]
[348304404,1736439041786,-1370.19828509,9.975e-05,2]
[348304407,1736439041808,-12203.29171491,9.975e-05,2]
[348304409,1736439041817,-3895.28,9.975e-05,2]
[348304411,1736439041827,-2256.12,9.975e-05,2]
[348304413,1736439041838,-876.12,9.975e-05,2]
[348304415,1736439041848,-500.0,9.975e-05,2]
[348304417,1736439041861,-1246.08,9.975e-05,2]
[348304419,1736439041871,-941.72,9.976e-05,2]
[348304421,1736439041880,-1515.87,9.976e-05,2]
[348304423,1736439041890,-567.36,9.976e-05,2]
[348304425,1736439041900,-2160.6,9.976e-05,2]
[348304427,1736439041909,-208.19531946,9.976e-05,2]
[348304429,1736439041918,-1000.0,9.976e-05,2]
[348304431,1736439041927,-1402.84,9.976e-05,2]
[348304433,1736439041938,-500.0,9.976e-05,2]
[348304435,1736439041947,-3197.74,9.976e-05,2]
[348304437,1736439041957,-2454.92,9.976e-05,2]
[348304439,1736439041966,-200.0,9.976e-05,2]
[348304441,1736439041976,-200.0,9.98e-05,2]
[348304443,1736439041985,-200.0,9.984e-05,2]
[348304445,1736439041994,-200.0,9.988e-05,2]
[348304447,1736439042004,-200.0,9.989e-05,2]
[348304449,1736439042013,-150.0,9.995e-05,2]
[348304451,1736439042023,-5238.35810361,0.0001,2]
[348304453,1736439042033,-172.75,0.0001,2]
[348304455,1736439042042,-286.0,0.0001,2]
[348304457,1736439042052,-169.38181826,0.0001,2]
[348304459,1736439042061,-1136.52039046,0.0001,2]
[348304461,1736439042071,-1136.52039046,0.0001,2]
[348304463,1736439042081,-1136.52039046,0.00010031,2]
[348304465,1736439042091,-508.09,0.00010071,2]
[348304467,1736439042103,-7877.4,0.00010071,2]
[348304469,1736439042113,-4372.42,0.00010071,2]
[348304471,1736439042122,-1110.03,0.00010071,2]
[348304473,1736439042131,-2899.54,0.00010071,2]
[348304475,1736439042140,-6743.94,0.00010071,2]
[348304477,1736439042149,-616.64,0.00010071,2]
[348304479,1736439042159,-500.0,0.00010071,2]
[348304481,1736439042168,-1400.52,0.00010071,2]
[348304483,1736439042178,-764.58,0.00010071,2]
[348304485,1736439042187,-524.59,0.00010071,2]
[348304487,1736439042196,-1406.64,0.00010071,2]
[348304489,1736439042206,-1645.73,0.00010071,2]
[348304491,1736439042215,-500.0,0.00010071,2]
[348304493,1736439042225,-538.91,0.00010072,2]
[348304495,1736439042234,-500.0,0.00010072,2]
[348304497,1736439042244,-500.0,0.00010072,2]
[348304499,1736439042255,-500.0,0.00010072,2]
[348304501,1736439042265,-500.0,0.00010072,2]
[348304503,1736439042275,-500.0,0.00010072,2]
[348304505,1736439042285,-500.0,0.00010072,2]
[348304507,1736439042295,-500.0,0.00010072,2]
[348304509,1736439042304,-500.0,0.00010072,2]
[348304511,1736439042313,-500.0,0.00010072,2]
[348304512,1736439042322,-500.0,0.00010072,2]
[348304513,1736439042333,-500.0,0.00010072,2]
[348304514,1736439042342,-500.0,0.00010072,2]
[348304515,1736439042355,-500.0,0.00010072,2]
[348304516,1736439042365,-500.0,0.00010072,2]
[348304517,1736439042375,-500.0,0.00010072,2]
[348304518,1736439042384,-500.0,0.00010072,2]
[348304520,1736439042395,-500.0,0.00010072,2]
[348304522,1736439042404,-500.0,0.00010072,2]
[348304524,1736439042414,-500.0,0.00010072,2]
[348304526,1736439042424,-500.0,0.00010072,2]
[348304528,1736439042433,-500.0,0.00010072,2]
[348304530,1736439042443,-500.0,0.00010072,2]
[348304532,1736439042452,-500.0,0.00010072,2]
[348304534,1736439042462,-500.0,0.00010072,2]
[348304536,1736439042471,-500.0,0.00010072,2]
[348304538,1736439042481,-500.0,0.00010072,2]
[348304540,1736439042491,-500.0,0.00010072,2]
[348304542,1736439042501,-500.0,0.00010072,2]
[348304544,1736439042511,-500.0,0.00010072,2]
[348304546,1736439042521,-500.0,0.00010072,2]
[348304548,1736439042531,-500.0,0.00010072,2]
[348304550,1736439042541,-500.0,0.00010072,2]
[348304552,1736439042550,-500.0,0.00010072,2]
[348304554,1736439042560,-500.0,0.00010072,2]
[348304556,1736439042570,-500.0,0.00010072,2]
[348304558,1736439042580,-500.0,0.00010072,2]
[348304560,1736439042590,-500.0,0.00010072,2]
[348304562,1736439042604,-500.0,0.00010072,2]
[348304566,1736439042613,-500.0,0.00010072,2]
[348304569,1736439042623,-500.0,0.00010072,2]
[348304572,1736439042632,-500.0,0.00010072,2]
[348304574,1736439042642,-500.0,0.00010072,2]
[348304576,1736439042651,-238.78187239,0.00010072,2]
[348304654,1736439043311,-261.21812761,0.00010072,2]
[348304656,1736439043321,-500.0,0.00010072,2]
[348304658,1736439043330,-289.8318726,0.00010072,2]
[348304660,1736439043342,-210.1681274,0.00010072,2]
[348304661,1736439043353,-350.44918001,0.00010072,2]
[348304663,1736439043364,-149.55081999,0.00010072,2]
[348304665,1736439043373,-500.0,0.00010072,2]
[348304667,1736439043382,-139.94682435,0.00010072,2]
[348304669,1736439043393,-360.05317565,0.00010072,2]
[348304670,1736439043402,-500.0,0.00010072,2]
[348304672,1736439043412,-62.63682435,0.00010072,2]
[348304675,1736439043447,-500.0,9.797e-05,2]
[348304677,1736439043457,-290.799199,0.00010072,2]
[348304679,1736439043469,-146.56397665,0.00010072,2]
[348304681,1736439043478,-500.0,0.00010072,2]
[348304682,1736439043487,-327.20602335,0.00010072,2]
[348304721,1736439043934,-500.0,9.798e-05,2]
[348304723,1736439043943,-500.0,9.974e-05,2]
[348304725,1736439043952,-172.79397665,0.00010072,2]
[348304727,1736439043962,-500.0,0.00010072,2]
[348304729,1736439043973,-500.0,0.00010072,2]
[348304731,1736439043982,-500.0,0.00010072,2]
[348304733,1736439043991,-500.0,0.00010072,2]
[348304735,1736439044000,-500.0,0.00010072,2]
[348304736,1736439044010,-500.0,0.00010072,2]
[348304737,1736439044020,-561.23,0.00010072,2]
[348304738,1736439044030,-500.0,0.00010072,2]
[348304739,1736439044039,-500.0,0.00010072,2]
[348304740,1736439044049,-500.0,0.00010072,2]
[348304741,1736439044058,-500.0,0.00010072,2]
[348304742,1736439044068,-500.0,0.00010072,2]
[348304743,1736439044081,-500.0,0.00010072,2]
[348304744,1736439044096,-1362.15,0.00010072,2]
[348304745,1736439044107,-813.72,0.00010072,2]
[348304746,1736439044118,-500.0,0.00010072,2]
[348304748,1736439044128,-636.0,0.00010072,2]
[348304750,1736439044137,-500.0,0.00010072,2]
[348304752,1736439044147,-1459.79,0.00010072,2]
[348304754,1736439044156,-500.0,0.00010072,2]
[348304756,1736439044165,-984.2,0.00010072,2]
[348304758,1736439044175,-500.0,0.00010072,2]
[348304760,1736439044184,-500.0,0.00010072,2]
[348304762,1736439044193,-500.0,0.00010072,2]
[348304764,1736439044203,-620.62,0.00010072,2]
[348304766,1736439044212,-682.39,0.00010072,2]
[348304768,1736439044221,-500.0,0.00010072,2]
[348304770,1736439044231,-500.0,0.00010072,2]
[348304772,1736439044240,-500.0,0.00010072,2]
[348304774,1736439044249,-500.0,0.00010072,2]
[348304776,1736439044258,-500.0,0.00010072,2]
[348304778,1736439044267,-500.0,0.00010072,2]
[348304780,1736439044276,-500.0,0.00010072,2]
[348304782,1736439044286,-652.59,0.00010072,2]
[348304784,1736439044295,-11.3690153,0.00010072,2]
[348304786,1736439044307,-488.6309847,0.00010072,2]
[348304788,1736439044316,-500.0,0.00010072,2]
[348304790,1736439044326,-500.0,0.00010072,2]
[348304792,1736439044335,-500.0,0.00010072,2]
[348304794,1736439044344,-312.5164259,0.00010072,2]
[348304796,1736439044354,-500.0,0.00010072,2]
[348304798,1736439044362,-500.0,0.00010072,2]
[348304800,1736439044371,-500.0,0.00010072,2]
[348304801,1736439044381,-582.65,0.00010072,2]
[348304803,1736439044390,-500.0,0.00010072,2]
[348304805,1736439044399,-500.0,0.00010072,2]
[348304807,1736439044409,-500.0,0.00010072,2]
[348304809,1736439044418,-281.49865655,0.00010072,2]
[348304811,1736439044428,-500.0,0.00010072,2]
[348304813,1736439044438,-500.0,0.00010072,2]
[348304815,1736439044447,-500.0,0.00010072,2]
[348304817,1736439044456,-500.0,0.00010072,2]
[348304819,1736439044466,-540.37,0.00010072,2]
[348304821,1736439044475,-500.0,0.00010072,2]
[348304823,1736439044485,-500.0,0.00010072,2]
[348304826,1736439044494,-534.26,0.00010072,2]
[348304828,1736439044503,-500.0,0.00010072,2]
[348304830,1736439044512,-500.0,0.00010072,2]
[348304831,1736439044522,-569.97,0.00010072,2]
[348304833,1736439044531,-500.0,0.00010072,2]
[348304835,1736439044541,-628.57,0.00010072,2]
[348304837,1736439044550,-500.0,0.00010072,2]
[348304839,1736439044559,-500.0,0.00010072,2]
[348304841,1736439044568,-681.21,0.00010072,2]
[348304843,1736439044578,-500.0,0.00010072,2]
[348304845,1736439044587,-657.74,0.00010072,2]
[348304847,1736439044596,-500.0,0.00010072,2]
[348304849,1736439044607,-500.0,0.00010072,2]
[348304852,1736439044616,-1169.44,0.00010072,2]
[348304854,1736439044626,-596.4528257,0.00010072,2]
[348304856,1736439044638,-1653.0071743,0.00010072,2]
[348304858,1736439044647,-500.0,0.00010072,2]
[348304860,1736439044656,-777.4,0.00010072,2]
[348304862,1736439044665,-597.15,0.00010072,2]
[348304864,1736439044674,-498.45046138,0.00010072,2]
[348304866,1736439044684,-474.87236437,0.00010072,2]
[348304868,1736439044695,-25.12763563,0.00010072,2]
[348304870,1736439044704,-501.94,0.00010072,2]
[348304872,1736439044713,-233.49158193,0.00010072,2]
[348304876,1736439044743,-525.88,9.798e-05,2]
[348304878,1736439044752,-266.50841807,0.00010072,2]
[348304880,1736439044762,-1347.15,0.00010072,2]
[348304882,1736439044771,-500.0,0.00010072,2]
[348304884,1736439044780,-523.94,0.00010072,2]
[348304886,1736439044789,-1612.65,0.00010072,2]
[348304888,1736439044800,-675.02,0.00010072,2]
[348304890,1736439044809,-500.0,0.00010072,2]
[348304891,1736439044818,-500.0,0.00010072,2]
[348304893,1736439044827,-1205.88,0.00010072,2]
[348304896,1736439044838,-500.0,0.00010072,2]
[348304897,1736439044847,-866.82,0.00010072,2]
[348304899,1736439044859,-500.0,0.00010072,2]
[348304901,1736439044869,-925.46,0.00010072,2]
[348304904,1736439044878,-500.0,0.00010072,2]
[348304906,1736439044888,-681.99,0.00010072,2]
[348304907,1736439044899,-500.0,0.00010072,2]
[348304909,1736439044912,-607.45,0.00010072,2]
[348304912,1736439044924,-500.0,0.00010072,2]
[348304914,1736439044934,-500.0,0.00010072,2]
[348304916,1736439044943,-500.0,0.00010072,2]
[348304917,1736439044955,-500.0,0.00010072,2]
[348304920,1736439044965,-500.0,0.00010072,2]
[348304921,1736439044975,-857.42,0.00010072,2]
[348304923,1736439044984,-564.85,0.00010072,2]
[348304926,1736439044993,-500.0,0.00010072,2]
[348304927,1736439045003,-500.0,0.00010072,2]
[348304929,1736439045012,-500.0,0.00010072,2]
[348304931,1736439045022,-1031.83,0.00010072,2]
[348304933,1736439045031,-500.0,0.00010072,2]
[348304935,1736439045040,-703.36,0.00010072,2]
[348304937,1736439045050,-500.0,0.00010072,2]
[348304939,1736439045059,-500.0,0.00010072,2]
[348304941,1736439045068,-500.0,0.00010072,2]
[348304943,1736439045077,-500.0,0.00010072,2]
[348304945,1736439045086,-500.0,0.00010072,2]
[348304947,1736439045095,-585.49,0.00010072,2]
[348304949,1736439045106,-500.0,0.00010072,2]
[348304951,1736439045114,-793.19,0.00010072,2]
[348304953,1736439045124,-307.37151068,0.00010072,2]
[348304955,1736439045133,-536.33,0.00010072,2]
[348304957,1736439045142,-223.2608486,0.00010072,2]
[348304959,1736439045151,-500.0,0.00010072,2]
[348304961,1736439045160,-539.45700503,0.00010072,2]
[348304963,1736439045170,-500.0,0.00010072,2]
[348304965,1736439045178,-500.0,0.00010072,2]
[348304967,1736439045188,-500.0,0.00010072,2]
[348304969,1736439045197,-500.0,0.00010072,2]
[348304971,1736439045207,-547.48,0.00010072,2]
[348304973,1736439045216,-500.0,0.00010072,2]
[348304975,1736439045225,-500.0,0.00010072,2]
[348304977,1736439045234,-574.17,0.00010072,2]
[348304979,1736439045243,-500.0,0.00010072,2]
[348304981,1736439045253,-500.0,0.00010072,2]
[348304983,1736439045262,-1766.45,0.00010072,2]
[348304985,1736439045271,-500.0,0.00010072,2]
[348304987,1736439045280,-500.0,0.00010072,2]
[348304989,1736439045290,-500.0,0.00010072,2]
[348304991,1736439045299,-500.0,0.00010072,2]
[348304993,1736439045308,-500.0,0.00010072,2]
[348304995,1736439045316,-590.91,0.00010072,2]
[348304997,1736439045325,-500.0,0.00010072,2]
[348304999,1736439045334,-928.0,0.00010072,2]
[348305001,1736439045343,-500.0,0.00010072,2]
[348305003,1736439045354,-2350.38307967,0.00010072,2]
[348305005,1736439045366,-142.47692033,0.00010072,2]
[348305007,1736439045375,-250.08424952,0.00010072,2]
[348305009,1736439045387,-249.91575048,0.00010072,2]
[348305011,1736439045396,-63.26706583,0.00010072,2]
[348305015,1736439045422,-500.0,9.797e-05,2]
[348305017,1736439045431,-164.41871925,0.00010072,2]
[348305019,1736439045441,-272.31421492,0.00010072,2]
[348305021,1736439045450,-0.61223478,0.00010072,2]
[348305023,1736439045461,-812.23776522,0.00010072,2]
[348305025,1736439045470,-431.4126937,0.00010072,2]
[348305027,1736439045479,-500.0,0.00010072,2]
[348305052,1736439045697,-500.0,0.00010072,2]
[348305054,1736439045707,-949.48,0.00010072,2]
[348305056,1736439045719,-118.64195515,0.00010072,2]
[348305058,1736439045730,-2451.82296027,0.00010072,2]
[348305062,1736439045748,-1324.66008166,0.00010072,2]
[348305065,1736439045760,-374.464,0.00010072,2]
[348305069,1736439045772,-235.99100292,0.00010072,2]
[348305072,1736439045782,-500.0,0.00010072,2]
[348305074,1736439045791,-500.0,0.00010072,2]
[348305077,1736439045801,-1221.62,0.00010072,2]
[348305080,1736439045811,-13981.86,0.00010072,2]
[348305082,1736439045820,-510.47,0.00010072,2]
[348305084,1736439045830,-1250.16,0.00010072,2]
[348305086,1736439045840,-5041.99,0.00010072,2]
[348305088,1736439045849,-360.40899709,0.00010072,2]
[348305091,1736439045866,-139.59100291,0.00010072,2]
[348305093,1736439045875,-208.57381709,0.00010072,2]
[348305095,1736439045888,-291.42618291,0.00010072,2]
[348305097,1736439045897,-500.0,0.00010072,2]
[348305099,1736439045906,-185.38381709,0.00010072,2]
[348305101,1736439045918,-314.61618291,0.00010072,2]
[348305103,1736439045927,-185.38381709,0.00010072,2]
[348305106,1736439045947,-500.0,9.798e-05,2]
[348305108,1736439045957,-314.61618291,0.00010072,2]
[348305110,1736439045967,-70.9268599,0.00010072,2]
[348305112,1736439045978,-429.0731401,0.00010072,2]
[348305114,1736439045988,-2271.30515985,0.00010072,2]
[348305116,1736439045999,-55.32484015,0.00010072,2]
[348305118,1736439046009,-500.0,0.00010072,2]
[348305120,1736439046018,-2750.8,0.00010072,2]
[348305122,1736439046027,-500.0,0.00010072,2]
[348305124,1736439046036,-500.0,0.00010072,2]
[348305126,1736439046045,-580.17515985,0.00010072,2]
[348305136,1736439046129,-10.48484015,0.00010072,2]
[348305138,1736439046139,-500.0,0.00010072,2]
[348305140,1736439046148,-2454.44,0.00010072,2]
[348305142,1736439046158,-464.91385652,0.00010072,2]
[348305144,1736439046169,-35.08614348,0.00010072,2]
[348305146,1736439046178,-2089.08,0.00010072,2]
[348305148,1736439046187,-500.0,0.00010072,2]
[348305150,1736439046197,-4193.81,0.00010072,2]
[348305152,1736439046206,-2002.04,0.00010072,2]
[348305154,1736439046216,-500.0,0.00010072,2]
[348305156,1736439046226,-495.0409258,0.00010072,2]
[348305169,1736439046428,-4.9590742,0.00010072,2]
[348305171,1736439046438,-500.0,0.00010072,2]
[348305173,1736439046447,-903.41,0.00010072,2]
[348305175,1736439046457,-500.0,0.00010072,2]
[348305177,1736439046466,-500.0,0.00010072,2]
[348305179,1736439046475,-500.0,0.00010072,2]
[348305181,1736439046484,-1069.040931,0.00010072,2]
[348305183,1736439046494,-500.0,0.00010072,2]
[348305185,1736439046503,-500.0,0.00010072,2]
[348305187,1736439046512,-744.03,0.00010072,2]
[348305189,1736439046521,-1174.5599948,0.00010072,2]
[348305191,1736439046533,-433.75077139,0.00010072,2]
[348305200,1736439046610,-500.0,0.00010071,2]
[348305202,1736439046619,-63.55546993,0.00010072,2]
[348305276,1736439047398,-598.71531686,9.797e-05,2]
[348305277,1736439047416,-1129.63468314,9.797e-05,2]
[348305278,1736439047425,-277.09701,9.798e-05,2]
[348305279,1736439047434,-179.91857406,9.974e-05,2]
[348305280,1736439047453,-320.08142594,9.974e-05,2]
[348305281,1736439047463,-500.0,9.974e-05,2]
[348305282,1736439047472,-500.0,9.974e-05,2]
[348305283,1736439047481,-500.0,9.974e-05,2]
[348305284,1736439047491,-1728.35,0.00010071,2]
[348305285,1736439047501,-1384.87590743,0.00010072,2]
[348305286,1736439047512,-4347.72785645,0.00010072,2]
[348305287,1736439047522,-500.0,0.00010072,2]
[348305288,1736439047532,-2139.38,0.00010072,2]
[348305289,1736439047542,-4240.67,0.00010072,2]
[348305290,1736439047551,-994.584959,0.00010072,2]
[348305291,1736439047560,-1444.36,0.00010072,2]
[348305292,1736439047570,-509.4179875,0.00010072,2]
[348305293,1736439047580,-500.0,0.00010072,2]
[348305294,1736439047589,-500.0,0.00010072,2]
[348305295,1736439047598,-1468.32,0.00010072,2]
[348305296,1736439047610,-872.65,0.00010072,2]
[348305297,1736439047621,-500.0,0.00010072,2]
[348305298,1736439047630,-500.0,0.00010072,2]
[348305299,1736439047640,-3179.44,0.00010072,2]
[348305300,1736439047650,-500.0,0.00010072,2]
[348305301,1736439047660,-2798.97,0.00010072,2]
[348305302,1736439047670,-500.0,0.00010072,2]
[348305303,1736439047679,-1250.13,0.00010072,2]
[348305304,1736439047689,-501.27,0.00010072,2]
[348305305,1736439047699,-500.0,0.00010072,2]
[348305306,1736439047708,-1529.02,0.00010072,2]
[348305307,1736439047718,-527.66,0.00010072,2]
[348305308,1736439047732,-500.0,0.00010072,2]
[348305309,1736439047743,-500.0,0.00010072,2]
[348305310,1736439047752,-500.0,0.00010072,2]
[348305311,1736439047762,-500.0,0.00010072,2]
[348305312,1736439047771,-500.0,0.00010072,2]
[348305313,1736439047780,-500.0,0.00010072,2]
[348305314,1736439047790,-697.28,0.00010072,2]
[348305316,1736439047800,-500.0,0.00010072,2]
[348305317,1736439047809,-500.0,0.00010072,2]
[348305318,1736439047818,-573.69,0.00010072,2]
[348305319,1736439047828,-500.0,0.00010072,2]
[348305320,1736439047837,-525.88,0.00010072,2]
[348305321,1736439047847,-5822.91,0.00010073,2]
[348305322,1736439047856,-500.0,0.00010073,2]
[348305323,1736439047868,-1578.54,0.00010073,2]
[348305324,1736439047877,-601.77,0.00010073,2]
[348305326,1736439047887,-925.39,0.00010073,2]
[348305328,1736439047896,-500.0,0.00010073,2]
[348305330,1736439047906,-1549.63,0.00010073,2]
[348305332,1736439047916,-2066.95,0.00010073,2]
[348305334,1736439047925,-2295.27,0.00010073,2]
[348305336,1736439047935,-1610.6,0.00010073,2]
[348305338,1736439047944,-3692.16,0.00010073,2]
[348305340,1736439047953,-3067.6,0.00010073,2]
[348305342,1736439047964,-7734.52,0.00010073,2]
[348305344,1736439047973,-5430.17,0.00010073,2]
[348305346,1736439047983,-548.91,0.00010073,2]
[348305348,1736439047992,-786.84639189,0.00010073,2]
[348305350,1736439048004,-379.16360811,0.00010073,2]
[348305352,1736439048013,-645.88,0.00010073,2]
[348305354,1736439048023,-500.0,0.00010073,2]
[348305356,1736439048032,-711.37,0.00010073,2]
[348305358,1736439048042,-517.5,0.00010073,2]
[348305360,1736439048051,-500.0,0.00010073,2]
[348305362,1736439048061,-833.88,0.00010073,2]
[348305363,1736439048070,-500.0,0.00010073,2]
[348305365,1736439048081,-4867.00639189,0.00010073,2]
[348305366,1736439048093,-725.21967327,0.00010073,2]
[348305367,1736439048105,-1106.06393484,0.00010073,2]
[348305368,1736439048116,-2514.35,0.00010073,2]
[348305369,1736439048126,-1883.89,0.00010073,2]
[348305370,1736439048136,-598.09,0.00010073,2]
[348305371,1736439048146,-841.93,0.00010073,2]
[348305372,1736439048156,-1893.35,0.00010073,2]
[348305373,1736439048165,-500.0,0.00010073,2]
[348305374,1736439048175,-401.46046516,0.00010073,2]
[348305377,1736439048199,-500.0,9.975e-05,2]
[348305379,1736439048208,-750.13953484,0.00010073,2]
[348305380,1736439048218,-854.5,0.00010073,2]
[348305383,1736439048228,-2.05714591,0.00010073,2]
[348305387,1736439048262,-822.26258397,0.00010073,2]
[348305389,1736439048276,-1226.15027012,0.00010073,2]
[348305391,1736439048286,-611.94,0.00010073,2]
[348305393,1736439048295,-1364.2,0.00010073,2]
[348305395,1736439048305,-500.0,0.00010073,2]
[348305397,1736439048315,-2999.35,0.00010073,2]
[348305399,1736439048324,-500.0,0.00010073,2]
[348305401,1736439048334,-500.0,0.00010073,2]
[348305402,1736439048343,-652.64,0.00010073,2]
[348305403,1736439048353,-500.0,0.00010073,2]
[348305404,1736439048363,-500.0,0.00010073,2]
[348305405,1736439048373,-1941.25,0.00010073,2]
[348305406,1736439048382,-500.0,0.00010073,2]
[348305407,1736439048391,-801.37,0.00010073,2]
[348305408,1736439048401,-888.16,0.00010073,2]
[348305409,1736439048410,-1278.23,0.00010073,2]
[348305410,1736439048420,-1271.54,0.00010073,2]
[348305411,1736439048430,-500.0,0.00010073,2]